bitfinex/quotes_BTCUSD_20260310
["timestamp","ask_amount","ask_price","bid_price","bid_amount"]
[1773109010716,0.07219695,69255.0,69230.0,0.07242302]
[1773109010717,0.17464287,69246.0,69230.0,0.07242302]
[1773109010907,0.00144,69245.0,69230.0,0.07253707]
[1773109011111,0.00144,69245.0,69231.0,0.01413499]
[1773109011316,0.00144,69245.0,69231.0,0.15010835]
[1773109011521,0.00144,69245.0,69232.0,0.01398109]
[1773109011696,0.00144,69245.0,69230.0,0.07253707]
[1773109011697,0.03144,69245.0,69234.0,0.01398109]
[1773109012871,0.03,69243.0,69236.0,0.01398109]
[1773109014805,0.03,69241.0,69236.0,0.01398109]
[1773109015208,0.03,69241.0,69235.0,0.07221779]
[1773109016409,0.03,69241.0,69236.0,0.0002]
[1773109016617,0.03,69241.0,69236.0,0.01418109]
[1773109017119,0.03,69240.0,69236.0,0.01418109]
[1773109017365,0.07220946,69243.0,69236.0,0.01418109]
[1773109017366,0.07364738,69245.0,69238.0,0.01398109]
[1773109018144,0.03,69244.0,69238.0,0.01398109]
[1773109018516,0.03,69242.0,69238.0,0.01398109]
[1773109018735,0.03,69242.0,69238.0,0.15010835]
[1773109018951,0.03,69242.0,69239.0,0.01398109]
[1773109019139,0.03,69242.0,69236.0,0.08639748]
[1773109019317,0.03,69242.0,69237.0,0.01398109]
[1773109019523,0.07220888,69244.0,69238.0,0.01398109]
[1773109019729,0.03,69243.0,69239.0,0.01398109]
[1773109019997,0.00144,69245.0,69241.0,0.01398109]
[1773109020481,0.07220112,69252.0,69241.0,0.01398109]
[1773109020684,0.00144,69245.0,69241.0,0.01398109]
[1773109021142,0.07220565,69247.0,69243.0,0.01398109]
[1773109021143,0.00144,69247.0,69243.0,0.01398109]
[1773109022894,0.07219684,69257.0,69244.0,0.15010835]
[1773109023115,0.07219684,69257.0,69243.0,0.07220922]
[1773109023116,0.07219684,69257.0,69247.0,0.01398109]
[1773109023331,0.00144,69256.0,69247.0,0.01398109]
[1773109024257,0.00022001,69253.0,69247.0,0.01398109]
[1773109024865,0.00022001,69253.0,69247.0,0.07220459]
[1773109025070,0.00022001,69253.0,69248.0,0.01398109]
[1773109026186,0.00144,69256.0,69248.0,0.01398109]
[1773109026333,0.07363604,69256.0,69248.0,0.01398109]
[1773109026889,0.07363604,69256.0,69248.0,0.07220343]
[1773109027067,0.07363604,69256.0,69249.0,0.01398109]
[1773109027658,0.07363604,69256.0,69246.0,0.01398109]
[1773109028506,0.07219604,69256.0,69246.0,0.01398109]
[1773109028660,0.00144,69255.0,69246.0,0.01398109]
[1773109029291,0.07219799,69254.0,69246.0,0.0861865]
[1773109030039,0.07219799,69254.0,69247.0,0.01398109]
[1773109031196,0.07363799,69254.0,69247.0,0.01398109]
[1773109031604,0.07363799,69254.0,69247.0,0.08618625]
[1773109031963,0.07363799,69254.0,69248.0,0.01398109]
[1773109032273,0.00144,69254.0,69248.0,0.01398109]
[1773109033041,0.10363816,69254.0,69248.0,0.01398109]
[1773109033367,0.07241689,69256.0,69250.0,0.01398109]
[1773109033368,0.00144,69255.0,69250.0,0.01398109]
[1773109033627,0.00144,69255.0,69251.0,0.01398109]
[1773109033826,0.00022001,69256.0,69251.0,0.01398109]
[1773109034159,0.03022001,69256.0,69251.0,0.01398109]
[1773109034835,0.03028045,69256.0,69251.0,0.01398109]
[1773109035038,0.00028045,69256.0,69251.0,0.01398109]
[1773109035829,0.07218792,69264.0,69253.0,0.01398109]
[1773109036044,0.07218792,69264.0,69252.0,0.07220008]
[1773109036045,0.03022001,69280.0,69256.0,0.15069435]
[1773109036353,0.00166001,69280.0,69255.0,0.01398109]
[1773109036669,0.07383125,69280.0,69261.0,0.15069435]
[1773109036859,0.07383125,69280.0,69264.0,0.01398109]
[1773109037055,0.07383125,69280.0,69266.0,0.01398109]
[1773109037261,0.03,69279.0,69269.0,0.15069435]
[1773109037469,0.03,69279.0,69270.0,0.01398109]
[1773109037823,0.03,69279.0,69270.0,0.01383275]
[1773109038230,0.07217298,69278.0,69270.0,0.01383275]
[1773109038433,0.03,69277.0,69270.0,0.08601405]
[1773109040465,0.10217425,69277.0,69270.0,0.08601405]
[1773109041511,0.10239426,69277.0,69270.0,0.08601405]
[1773109041720,0.10258938,69277.0,69255.0,0.01397835]
[1773109041929,0.10239426,69277.0,69259.0,0.01390692]
[1773109042551,0.03,69269.0,69259.0,0.01390692]
[1773109043704,0.03,69268.0,69259.0,0.01390692]
[1773109043819,0.07239426,69277.0,69262.0,0.15069435]
[1773109043820,0.07217598,69276.0,69262.0,0.15069435]
[1773109044059,0.00144,69275.0,69264.0,0.01390692]
[1773109044686,0.03144,69275.0,69264.0,0.01390692]
[1773109045007,0.00144,69274.0,69264.0,0.01390692]
[1773109046033,0.03,69272.0,69265.0,0.08609344]
[1773109047043,0.03,69271.0,69265.0,0.08609344]
[1773109048214,0.03144,69274.0,69265.0,0.08609344]
[1773109048403,0.10361772,69274.0,69265.0,0.08609344]
[1773109048820,0.03144,69274.0,69265.0,0.08609344]
[1773109049036,0.03144,69274.0,69266.0,0.01390692]
[1773109049253,0.03,69273.0,69266.0,0.01390692]
[1773109050334,0.00144,69274.0,69267.0,0.08609136]
[1773109050676,0.03,69276.0,69268.0,0.01390692]
[1773109051125,0.1021751,69276.0,69267.0,0.07218444]
[1773109051328,0.1021751,69276.0,69266.0,0.07218482]
[1773109052105,0.03,69274.0,69258.0,0.0002]
[1773109052315,0.03,69274.0,69250.0,0.00023]
[1773109052316,0.03,69268.0,69250.0,0.00023]
[1773109052565,0.07217923,69272.0,69247.0,0.0002]
[1773109052566,0.17469877,69259.0,69247.0,0.0002]
[1773109052770,0.17469877,69259.0,69247.0,0.00026044]
[1773109052771,0.00144,69258.0,69247.0,0.00026044]
[1773109052988,0.00144,69258.0,69247.0,0.0724653]
[1773109055166,0.03,69256.0,69247.0,0.0724653]
[1773109056489,0.10219618,69256.0,69247.0,0.0724653]
[1773109059558,0.10219618,69256.0,69247.0,0.00026044]
[1773109061630,0.10219618,69256.0,69247.0,0.07246542]
[1773109064022,0.03,69254.0,69241.0,0.0002525]
[1773109064219,0.17669756,69254.0,69241.0,0.07246335]
[1773109065387,0.03,69253.0,69242.0,0.01390692]
[1773109065591,0.00144,69252.0,69248.0,0.01390692]
[1773109065933,0.00144,69252.0,69248.0,0.08611077]
[1773109066139,0.00022001,69258.0,69249.0,0.01390692]
[1773109066140,0.00144,69255.0,69249.0,0.01390692]
[1773109067475,0.00144,69255.0,69247.0,0.07240425]
[1773109067476,0.03144,69255.0,69247.0,0.0002]
[1773109068010,0.03,69253.0,69247.0,0.0002]
[1773109068209,0.03,69253.0,69241.0,0.07246376]
[1773109068210,0.04246531,69251.0,69241.0,0.07246376]
[1773109070328,0.04246531,69251.0,69240.0,0.07241156]
[1773109070329,0.11466693,69251.0,69240.0,0.0002]
[1773109070534,0.11466693,69251.0,69237.0,0.0002]
[1773109070535,0.17468749,69249.0,69237.0,0.0002]
[1773109070710,0.03,69243.0,69235.0,0.0002315]
[1773109070912,0.03,69243.0,69233.0,0.0002]
[1773109070913,0.00144,69242.0,69233.0,0.0002]
[1773109071101,0.03,69241.0,69233.0,0.0002]
[1773109073584,0.03,69239.0,69233.0,0.0002]
[1773109074322,0.03,69239.0,69234.0,0.0002]
[1773109075549,0.10221369,69239.0,69234.0,0.0002]
[1773109075876,0.03,69238.0,69234.0,0.0002]
[1773109077266,0.03,69236.0,69229.0,0.0002]
[1773109077625,0.03,69236.0,69225.0,0.00023]
[1773109077626,0.03,69232.0,69225.0,0.00023]
[1773109079991,0.03,69232.0,69221.0,0.07223236]
[1773109079992,0.03,69232.0,69212.0,1e-08]
[1773109079993,0.14468749,69228.0,69212.0,1e-08]
[1773109080199,0.14468749,69228.0,69203.0,0.07224916]
[1773109080200,0.03,69221.0,69201.0,0.01269168]
[1773109080398,0.03,69212.0,69201.0,0.01269168]
[1773109080604,0.07222198,69231.0,69203.0,0.01269168]
[1773109080605,0.05566924,69230.0,69203.0,0.01269168]
[1773109080817,0.00144,69229.0,69207.0,0.13229494]
[1773109081066,0.00144,69229.0,69210.0,0.01269168]
[1773109081313,0.00144,69229.0,69212.0,0.01269168]
[1773109081453,0.03,69219.0,69206.0,0.01269168]
[1773109081835,0.03,69219.0,69218.0,0.0002]
[1773109082042,0.03,69219.0,69211.0,0.0002]
[1773109083654,0.03,69219.0,69211.0,0.01289168]
[1773109084320,0.00144,69218.0,69214.0,0.13426633]
[1773109084496,0.00144,69218.0,69215.0,0.01269168]
[1773109085910,0.03144,69228.0,69215.0,0.01269168]
[1773109086309,0.03,69224.0,69212.0,0.0722418]
[1773109086586,0.03,69221.0,69211.0,0.0002]
[1773109086774,0.00144,69220.0,69211.0,0.0002]
[1773109087153,0.00144,69220.0,69204.0,0.07224937]
[1773109087154,0.03,69218.0,69204.0,0.07224937]
[1773109087323,0.00144,69220.0,69204.0,0.07224937]
[1773109087324,0.03,69216.0,69204.0,0.07224937]
[1773109088843,0.10223855,69216.0,69205.0,0.0002]
[1773109091036,0.03,69215.0,69206.0,0.01248698]
[1773109091187,0.03,69215.0,69210.0,0.01248698]
[1773109091188,0.00144,69215.0,69210.0,0.01248698]
[1773109091387,0.00022001,69219.0,69212.0,0.01248698]
[1773109091588,0.00144,69218.0,69212.0,0.01248698]
[1773109092056,0.00022001,69219.0,69212.0,0.01248698]
[1773109092330,0.00144,69218.0,69212.0,0.01248698]
[1773109092733,0.03144,69218.0,69212.0,0.01248698]
[1773109093536,0.03144,69218.0,69212.0,0.08472842]
[1773109093832,0.03,69217.0,69212.0,0.08472842]
[1773109094058,0.03,69217.0,69213.0,0.01248698]
[1773109094824,0.03,69216.0,69213.0,0.01248698]
[1773109095882,0.03,69215.0,69213.0,0.08472754]
[1773109096808,0.03,69215.0,69206.0,0.08473501]
[1773109097009,0.03,69214.0,69206.0,0.08473501]
[1773109097238,0.03,69214.0,69207.0,0.01248698]
[1773109098023,0.03,69213.0,69209.0,0.01248698]
[1773109098996,0.03,69217.0,69209.0,0.01248698]
[1773109101817,0.00144,69216.0,69210.0,0.07224389]
[1773109102067,0.00144,69218.0,69213.0,0.01248698]
[1773109102311,0.00144,69218.0,69203.0,0.07225038]
[1773109102312,0.01039894,69218.0,69203.0,0.07225038]
[1773109102509,0.01039894,69214.0,69200.0,0.07810429]
[1773109102726,0.14891713,69211.0,69200.0,0.07810429]
[1773109102946,0.00144,69210.0,69200.0,0.07810429]
[1773109103149,0.00144,69209.0,69200.0,0.07810429]
[1773109104190,0.00144,69209.0,69202.0,0.0002]
[1773109104399,0.00144,69216.0,69204.0,0.01248698]
[1773109104604,0.00144,69216.0,69207.0,0.13426633]
[1773109104808,0.00144,69216.0,69208.0,0.01248698]
[1773109105216,0.00144,69217.0,69210.0,0.01248698]
[1773109105421,0.00144,69218.0,69210.0,0.01248698]
[1773109105661,0.00144,69219.0,69210.0,0.13426633]
[1773109105853,0.00144,69219.0,69211.0,0.01248698]
[1773109106446,0.00144,69219.0,69213.0,0.01248698]
[1773109108394,0.00022001,69224.0,69214.0,0.07223972]
[1773109108607,0.00022001,69224.0,69215.0,0.01248698]
[1773109108801,0.00144,69223.0,69215.0,0.01248698]
[1773109109093,0.00022001,69224.0,69217.0,0.01248698]
[1773109110292,0.00022001,69224.0,69218.0,0.07223554]
[1773109111158,0.07223032,69223.0,69210.0,0.07224309]
[1773109111354,0.00941283,69220.0,69207.0,0.07224702]
[1773109111557,0.06655845,69220.0,69213.0,0.0002]
[1773109111770,0.05714562,69220.0,69207.0,0.07224702]
[1773109111978,0.03,69219.0,69208.0,0.01248698]
[1773109112410,0.03,69219.0,69209.0,0.07224493]
[1773109113196,0.03,69218.0,69209.0,0.07224493]
[1773109113504,0.03,69218.0,69210.0,0.01248698]
[1773109114417,0.03,69217.0,69210.0,0.01248698]
[1773109115397,0.03,69219.0,69211.0,0.07224285]
[1773109120276,0.10223473,69219.0,69211.0,0.07224285]
[1773109120478,0.03,69217.0,69208.0,0.07224598]
[1773109120680,0.03,69215.0,69207.0,0.07244701]
[1773109120884,0.03,69215.0,69207.0,0.0002]
[1773109120885,0.01237634,69214.0,69207.0,0.0002]
[1773109121087,0.03,69213.0,69207.0,0.0002]
[1773109122080,0.03,69212.0,69207.0,0.01046637]
[1773109123010,0.03,69211.0,69207.0,0.01046637]
[1773109124205,0.03,69210.0,69207.0,0.08271286]
[1773109124652,0.00144,69214.0,69207.0,0.08271286]
[1773109127009,0.11503538,69229.0,69207.0,0.07244649]
[1773109127208,0.00144,69219.0,69210.0,0.01026637]
[1773109127433,0.07245032,69224.0,69210.0,0.01026637]
[1773109127632,0.07245032,69224.0,69207.0,0.07244649]
[1773109127633,0.34652732,69259.0,69214.0,0.01026637]
[1773109127634,0.01125834,69247.0,69214.0,0.01026637]
[1773109127844,0.01237634,69246.0,69218.0,0.01026637]
[1773109128048,0.03,69239.0,69219.0,0.00144]
[1773109128276,0.03,69233.0,69219.0,0.00144]
[1773109128758,0.04093634,69233.0,69219.0,0.00144]
[1773109128907,0.07222198,69231.0,69219.0,0.0722345]
[1773109129121,0.03,69230.0,69219.0,0.0722345]
[1773109129742,0.03,69230.0,69219.0,0.08298094]
[1773109130153,0.07366155,69232.0,69219.0,0.08298094]
[1773109130154,0.00022001,69227.0,69219.0,0.08298094]
[1773109131227,0.03,69231.0,69219.0,0.08298094]
[1773109131428,0.03,69231.0,69222.0,0.01074644]
[1773109132848,0.03,69230.0,69222.0,0.01074644]
[1773109133663,0.03,69230.0,69223.0,0.07223032]
[1773109134030,0.03,69231.0,69223.0,0.07223032]
[1773109134701,0.03,69231.0,69224.0,0.01074644]
[1773109134927,0.00144,69232.0,69224.0,0.01074644]
[1773109135315,0.00144,69232.0,69223.0,0.07223032]
[1773109135993,0.10366107,69232.0,69221.0,0.07223228]
[1773109136192,0.03,69228.0,69221.0,0.07223228]
[1773109137192,0.03,69228.0,69220.0,0.07223032]
[1773109138350,0.00022001,69231.0,69220.0,0.1317077]
[1773109138529,0.00022001,69231.0,69221.0,0.01074644]
[1773109138530,0.07244232,69231.0,69221.0,0.01074644]
[1773109138757,0.00022001,69231.0,69221.0,0.01074644]
[1773109139300,0.03022001,69231.0,69221.0,0.01074644]
[1773109140351,0.03022001,69231.0,69222.0,0.07223137]
[1773109141307,0.10244233,69231.0,69222.0,0.07223137]
[1773109141510,0.11302999,69231.0,69222.0,0.07223137]
[1773109141714,0.11302999,69231.0,69221.0,0.07223213]
[1773109141946,0.03,69229.0,69220.0,0.07223196]
[1773109142145,0.07222511,69228.0,69219.0,0.07223391]
[1773109142330,0.03,69227.0,69219.0,0.07223391]
[1773109142522,0.03,69227.0,69218.0,0.07223553]
[1773109142750,0.03,69227.0,69217.0,0.07223644]
[1773109142751,0.00144,69226.0,69216.0,0.07223759]
[1773109143086,0.00144,69226.0,69213.0,0.11478076]
[1773109143087,0.04058766,69222.0,69213.0,0.07224065]
[1773109143638,0.03,69222.0,69213.0,0.07224065]
[1773109143857,0.03,69222.0,69214.0,0.01074644]
[1773109144080,0.000198,69226.0,69214.0,0.01074644]
[1773109144285,0.00144,69224.0,69216.0,0.08298407]
[1773109144652,0.00144,69224.0,69216.0,0.07223763]
[1773109145554,0.00144,69224.0,69215.0,0.07223763]
[1773109145800,0.00144,69224.0,69211.0,0.07224236]
[1773109145801,0.01058766,69221.0,69211.0,0.07224236]
[1773109146039,0.03,69218.0,69211.0,0.07235635]
[1773109146276,0.07242554,69226.0,69214.0,0.01074644]
[1773109146475,0.00144,69221.0,69214.0,0.01074644]
[1773109150233,0.00144,69221.0,69211.0,0.07235635]
[1773109150761,0.00144,69221.0,69211.0,0.08299455]
[1773109150970,0.00166001,69221.0,69211.0,0.08299455]
[1773109152423,0.00166001,69221.0,69211.0,0.07235635]
[1773109152631,0.00166001,69221.0,69212.0,0.0106382]
[1773109153033,0.03166001,69221.0,69212.0,0.0106382]
[1773109153933,0.00166001,69221.0,69212.0,0.0106382]
[1773109155168,0.00166001,69221.0,69213.0,0.07224076]
[1773109159496,0.03166001,69221.0,69213.0,0.07224076]
[1773109159695,0.03166001,69221.0,69213.0,0.07244076]
[1773109160699,0.00166001,69221.0,69213.0,0.07244076]
[1773109162277,0.00983882,69217.0,69208.0,0.09374373]
[1773109162479,0.03,69216.0,69209.0,0.07224493]
[1773109163545,0.03,69220.0,69209.0,0.07224493]
[1773109163749,0.03011417,69220.0,69209.0,0.07224493]
[1773109164168,0.03,69218.0,69208.0,0.07224598]
[1773109166379,0.03,69218.0,69208.0,0.07244598]
[1773109166910,0.03,69217.0,69208.0,0.07244598]
[1773109170624,0.07234798,69220.0,69208.0,0.08308418]
[1773109170827,0.07234834,69220.0,69208.0,0.08308418]
[1773109171815,0.10223546,69219.0,69208.0,0.08308418]
[1773109174731,0.10223546,69219.0,69208.0,0.07244598]
[1773109177377,0.11207428,69219.0,69208.0,0.07244598]
[1773109178137,0.10223546,69219.0,69208.0,0.07244598]
[1773109178287,0.03,69217.0,69208.0,0.07244598]
[1773109178500,0.03983882,69217.0,69208.0,0.07244598]
[1773109179960,0.03,69217.0,69208.0,0.07244598]
[1773109184282,0.03,69216.0,69208.0,0.07244598]
[1773109184821,0.03,69216.0,69207.0,0.0002]
[1773109185069,0.03,69216.0,69202.0,0.07245136]
[1773109185070,0.03,69213.0,69203.0,0.07225043]
[1773109185944,0.03,69214.0,69203.0,0.07225043]
[1773109186326,0.1022404,69214.0,69202.0,0.07245136]
[1773109186534,0.11182108,69214.0,69202.0,0.07245136]
[1773109189464,0.03958068,69214.0,69202.0,0.07245136]
[1773109189674,0.03,69213.0,69203.0,0.0100134]
[1773109190687,0.0722388,69215.0,69204.0,0.07225015]
[1773109190688,0.00144,69212.0,69204.0,0.07225015]
[1773109190890,0.03,69214.0,69204.0,0.07225015]
[1773109191139,0.00144,69212.0,69204.0,0.07225015]
[1773109191313,0.03144,69212.0,69204.0,0.07225015]
[1773109191724,0.03,69210.0,69204.0,0.07225015]
[1773109191944,0.00958068,69211.0,69204.0,0.07225015]
[1773109193253,0.00958068,69211.0,69202.0,0.07245136]
[1773109193835,0.00144,69212.0,69202.0,0.07245136]
[1773109194055,0.03126192,69212.0,69202.0,0.07245136]
[1773109194493,0.0722418,69214.0,69202.0,0.07245136]
[1773109194638,0.07264597,69226.0,69205.0,0.12680217]
[1773109194962,0.07264597,69226.0,69208.0,0.12680217]
[1773109195118,0.07264597,69226.0,69206.0,0.00144]
[1773109195119,0.00022001,69228.0,69211.0,0.00973633]
[1773109195333,0.00144,69230.0,69217.0,0.12680217]
[1773109195544,0.07221386,69239.0,69217.0,0.12680217]
[1773109195545,0.11522503,69251.0,69217.0,0.12680217]
[1773109195806,0.00166001,69255.0,69235.0,0.05568505]
[1773109195938,0.00144,69254.0,69241.0,0.00973633]
[1773109196145,0.00022001,69258.0,69241.0,0.00973633]
[1773109196351,0.00022001,69258.0,69245.0,0.00973633]
[1773109196562,0.07240686,69265.0,69247.0,0.00973633]
[1773109196563,0.03,69264.0,69247.0,0.00973633]
[1773109196826,0.07218021,69272.0,69246.0,0.00144]
[1773109196827,0.00022001,69269.0,69250.0,0.12680217]
[1773109197026,0.000601,69269.0,69253.0,0.00973633]
[1773109197227,0.000601,69269.0,69255.0,0.00973633]
[1773109197399,0.000601,69269.0,69256.0,0.07219591]
[1773109197400,0.00985279,69269.0,69256.0,0.07219591]
[1773109197577,0.03,69268.0,69256.0,0.07219591]
[1773109197781,0.00023,69275.0,69262.0,0.00973633]
[1773109198094,0.00023,69275.0,69256.0,0.07219591]
[1773109198095,0.00034424,69275.0,69264.0,0.00973633]
[1773109198297,0.00034424,69275.0,69266.0,0.00973633]
[1773109199650,0.00034424,69275.0,69267.0,0.07218444]
[1773109200998,0.00034424,69275.0,69257.0,0.00144]
[1773109200999,0.03,69268.0,69257.0,0.00144]
[1773109201201,0.03,69268.0,69257.0,0.00973633]
[1773109201551,0.03,69268.0,69258.0,0.07219382]
[1773109201986,0.03,69268.0,69253.0,0.07219871]
[1773109201987,0.00925179,69263.0,69253.0,0.07219871]
[1773109202189,0.03,69260.0,69250.0,0.07235703]
[1773109202313,0.03,69256.0,69250.0,0.0001556]
[1773109202512,0.03,69256.0,69250.0,0.07235755]
[1773109203157,0.03925179,69256.0,69253.0,0.001]
[1773109203313,0.03925179,69254.0,69247.0,0.07220503]
[1773109203743,0.11145023,69254.0,69245.0,0.07220736]
[1773109203944,0.23868815,69254.0,69245.0,0.07220698]
[1773109204145,0.03,69252.0,69245.0,0.07220698]
[1773109204321,0.03,69252.0,69243.0,0.07220901]
[1773109204525,0.03,69252.0,69238.0,0.07386566]
[1773109204526,0.00925179,69247.0,69238.0,0.07386566]
[1773109204726,0.00907372,69247.0,69238.0,0.07242566]
[1773109205890,0.07220633,69246.0,69238.0,0.07242566]
[1773109206852,0.07202827,69246.0,69238.0,0.07242566]
[1773109207261,0.00907372,69247.0,69238.0,0.07242566]
[1773109208284,0.08127916,69247.0,69238.0,0.07242566]
[1773109209606,0.45713814,69272.0,69238.0,0.07242566]
[1773109209607,0.03,69258.0,69241.0,0.13306139]
[1773109209808,0.03,69258.0,69243.0,0.01031421]
[1773109209960,0.10219391,69258.0,69243.0,0.01031421]
[1773109210373,0.03,69254.0,69241.0,0.00038099]
[1773109210568,0.17651446,69252.0,69241.0,0.00038099]
[1773109211037,0.17651446,69252.0,69242.0,0.0722105]
[1773109211227,0.03,69252.0,69242.0,0.0722105]
[1773109211574,0.03,69251.0,69242.0,0.0722105]
[1773109212625,0.03,69250.0,69242.0,0.0722105]
[1773109213638,0.03,69249.0,69242.0,0.0722105]
[1773109214591,0.03,69248.0,69242.0,0.0722105]
[1773109215692,0.03,69255.0,69242.0,0.0722105]
[1773109215846,0.03,69249.0,69238.0,0.07242554]
[1773109216046,0.17651446,69247.0,69238.0,0.07242554]
[1773109216553,0.13648971,69266.0,69241.0,0.13306139]
[1773109216900,0.00144,69268.0,69245.0,0.13306139]
[1773109217023,0.00144,69268.0,69248.0,0.01031421]
[1773109217222,0.00144,69268.0,69251.0,0.13306139]
[1773109217445,0.00144,69268.0,69253.0,0.01031421]
[1773109217650,0.00144,69268.0,69257.0,0.01031421]
[1773109217873,0.03,69271.0,69257.0,0.13306139]
[1773109218074,0.03,69271.0,69256.0,0.07219591]
[1773109218075,0.03,69271.0,69260.0,0.01031421]
[1773109218277,0.03022001,69270.0,69260.0,0.01031421]
[1773109218687,0.00022001,69272.0,69262.0,0.01031421]
[1773109219695,0.00023,69275.0,69262.0,0.01031421]
[1773109219696,0.00023,69275.0,69263.0,0.07218861]
[1773109219915,0.00034414,69275.0,69264.0,0.01031421]
[1773109220344,0.2186809,69285.0,69266.0,0.01031421]
[1773109220345,0.00144,69285.0,69266.0,0.01031421]
[1773109220553,0.07216264,69288.0,69268.0,0.01031421]
[1773109220762,0.00022001,69277.0,69268.0,0.01031421]
[1773109221793,0.00022001,69277.0,69272.0,0.01031421]
[1773109223400,0.21993749,69286.0,69271.0,0.07218027]
[1773109223401,0.00144,69290.0,69274.0,0.01031421]
[1773109223718,0.00144,69290.0,69278.0,0.01031421]
[1773109223922,0.20864161,69299.0,69282.0,0.01031421]
[1773109223923,0.00144,69299.0,69282.0,0.01031421]
[1773109224127,0.07238018,69300.0,69282.0,0.01031421]
[1773109224128,0.00144,69300.0,69284.0,0.13306139]
[1773109224300,0.00144,69300.0,69282.0,0.0002395]
[1773109224301,0.00144,69308.0,69287.0,0.01031421]
[1773109224501,0.00144,69308.0,69285.0,0.00144]
[1773109224502,0.00144,69308.0,69290.0,0.13306139]
[1773109224878,0.07775779,69312.0,69293.0,0.01031421]
[1773109225085,0.22427225,69312.0,69293.0,0.01031421]
[1773109225262,0.13792971,69311.0,69293.0,0.01031421]
[1773109225483,0.14806862,69311.0,69293.0,0.01031421]
[1773109226111,0.07213966,69310.0,69294.0,0.07215631]
[1773109226337,0.07213966,69310.0,69295.0,0.01031421]
[1773109227595,0.00011416,69311.0,69297.0,0.01031421]
[1773109228216,0.00011416,69311.0,69298.0,0.07215215]
[1773109228217,0.00155416,69311.0,69298.0,0.07215215]
[1773109228423,0.00155416,69311.0,69299.0,0.01031421]
[1773109228986,0.00022001,69319.0,69299.0,0.01031421]
[1773109229199,0.00060032,69319.0,69303.0,0.01031421]
[1773109229377,0.00060032,69319.0,69305.0,0.01031421]
[1773109229576,0.00060032,69319.0,69306.0,0.01031421]
[1773109229845,0.00060032,69319.0,69304.0,0.00144]
[1773109229846,0.00023,69325.0,69308.0,0.13306139]
[1773109230186,0.00023,69325.0,69311.0,0.01031421]
[1773109230384,0.00023,69325.0,69313.0,0.01031421]
[1773109230809,0.00562,69340.0,69314.0,0.13306139]
[1773109230962,0.00562,69340.0,69312.0,0.07213758]
[1773109230963,0.00562,69340.0,69321.0,0.13306139]
[1773109231165,0.0723287,69350.0,69330.0,0.16691184]
[1773109231166,1e-08,69346.0,69330.0,0.16691184]
[1773109231395,0.0002776,69353.0,69330.0,0.16691184]
[1773109231396,0.0002776,69353.0,69332.0,0.01031421]
[1773109231600,0.03,69357.0,69341.0,0.13306139]
[1773109231802,0.03,69357.0,69325.0,0.00023]
[1773109231803,0.03,69351.0,69327.0,0.01031421]
[1773109232006,0.03,69351.0,69325.0,0.00023]
[1773109232007,0.16648971,69351.0,69329.0,0.01027421]
[1773109232226,0.07209805,69350.0,69333.0,0.07211573]
[1773109232435,0.03,69349.0,69336.0,0.01031421]
[1773109232647,0.03,69349.0,69338.0,0.13306139]
[1773109232860,0.03,69349.0,69339.0,0.01031421]
[1773109233292,0.03,69348.0,69341.0,0.01031421]
[1773109233498,0.00011407,69351.0,69341.0,0.01031421]
[1773109234531,0.03011407,69351.0,69343.0,0.01031421]
[1773109235251,0.10221133,69351.0,69343.0,0.01031421]
[1773109235561,0.03011407,69351.0,69343.0,0.01031421]
[1773109236195,0.15931048,69361.0,69343.0,0.01031421]
[1773109236196,0.07208927,69359.0,69343.0,0.01031421]
[1773109236398,0.07208927,69359.0,69345.0,0.01031421]
[1773109236677,0.00022001,69356.0,69347.0,0.01031421]
[1773109237323,0.00022001,69356.0,69346.0,0.07354221]
[1773109237324,0.03,69355.0,69346.0,0.00144]
[1773109237532,0.17096064,69353.0,69346.0,0.00144]
[1773109238719,0.03,69351.0,69346.0,0.00144]
[1773109238921,0.03,69351.0,69343.0,0.0722192]
[1773109239126,0.03,69351.0,69312.0,0.17878]
[1773109239127,0.03,69349.0,69326.0,0.07212301]
[1773109239326,0.03,69349.0,69328.0,0.01033805]
[1773109239327,0.03,69347.0,69328.0,0.01033805]
[1773109239526,0.00011396,69349.0,69325.0,0.07235301]
[1773109239527,0.03,69341.0,69327.0,0.00144]
[1773109239846,0.00011396,69349.0,69330.0,0.01033805]
[1773109240058,0.00144,69347.0,69334.0,0.01033805]
[1773109240268,0.00144,69347.0,69336.0,0.01033805]
[1773109240704,0.00144,69347.0,69338.0,0.01033805]
[1773109240910,0.03,69348.0,69338.0,0.01033805]
[1773109241719,0.00011396,69349.0,69338.0,0.01033805]
[1773109242316,0.07221342,69349.0,69338.0,0.01033805]
[1773109243073,0.00022001,69347.0,69340.0,0.01033805]
[1773109243299,0.00022001,69347.0,69341.0,0.00144]
[1773109243887,0.03,69345.0,69341.0,0.00144]
[1773109244081,0.03,69345.0,69338.0,0.07355015]
[1773109244283,0.03,69345.0,69338.0,0.00144]
[1773109245027,0.03,69346.0,69338.0,0.00144]
[1773109245232,0.07232118,69347.0,69338.0,0.00144]
[1773109246895,0.07232118,69347.0,69326.0,0.07212223]
[1773109246896,0.00981681,69341.0,69326.0,0.07212223]
[1773109247092,0.16093589,69340.0,69326.0,0.07212223]
[1773109247296,0.16093589,69340.0,69325.0,0.00023]
[1773109247297,0.03,69336.0,69325.0,0.00023]
[1773109247591,0.03,69334.0,69325.0,0.0826917]
[1773109247795,0.03,69334.0,69326.0,0.01033805]
[1773109248436,0.03,69333.0,69326.0,0.01033805]
[1773109248634,0.07210949,69339.0,69326.0,0.01033805]
[1773109248834,0.20304538,69339.0,69326.0,0.01033805]
[1773109248976,0.07210949,69339.0,69326.0,0.01033805]
[1773109249185,0.07210949,69339.0,69325.0,0.00023]
[1773109249186,0.07211365,69335.0,69325.0,0.00023]
[1773109249395,0.13093589,69334.0,69325.0,0.00023]
[1773109249590,0.13093589,69334.0,69313.0,0.13309716]
[1773109249591,0.00981681,69333.0,69317.0,0.07213201]
[1773109249846,0.00981681,69330.0,69317.0,0.07357201]
[1773109250050,0.00981681,69330.0,69315.0,0.0002776]
[1773109250382,0.16691184,69330.0,69312.0,0.00562]
[1773109250585,0.03,69332.0,69314.0,0.01033805]
[1773109250586,0.03,69328.0,69314.0,0.01033805]
[1773109250711,0.00144,69327.0,69314.0,0.01033805]
[1773109251115,0.03,69328.0,69326.0,0.0002]